fUST/lending_fUST_20250314
["ID","MTS","AMOUNT","RATE_DAILY","PERIOD"]
[356087481,1741891856910,-3776.85,0.00013972,2]
[356087482,1741891856919,-1019.32,0.00013972,2]
[356087483,1741891856928,-500.0,0.00013972,2]
[356087484,1741891856937,-500.0,0.00013972,2]
[356087485,1741891856947,-506.90291681,0.00013972,2]
[356087486,1741891856956,-503.14057907,0.00013972,2]
[356087487,1741891856966,-969.11,0.00013972,2]
[356087488,1741891856975,-3392.33,0.00013972,2]
[356087489,1741891856985,-515.57739576,0.00013972,2]
[356087490,1741891856995,-500.0,0.00013972,2]
[356087491,1741891857004,-1613.39,0.00013972,2]
[356087492,1741891857014,-449.68238145,0.00013972,2]
[356087493,1741891857023,-1208.79,0.00013972,2]
[356087494,1741891857033,-500.0,0.00013972,2]
[356087495,1741891857043,-8549.8,0.00013972,2]
[356087496,1741891857052,-11236.25,0.00013972,2]
[356087497,1741891857062,-1795.09,0.00013972,2]
[356087498,1741891857071,-515.90385796,0.00013972,2]
[356087499,1741891857081,-52937.43,0.00013972,2]
[356087500,1741891857091,-500.0,0.00013972,2]
[356087501,1741891857100,-500.0,0.00013972,2]
[356087502,1741891857110,-623.82,0.00013972,2]
[356087503,1741891857121,-2041.48,0.00013972,2]
[356087504,1741891857131,-987.89,0.00013972,2]
[356087505,1741891857140,-514.80810063,0.00013972,2]
[356087506,1741891857149,-340.92003893,0.00013972,2]
[356087507,1741891857159,-2641.51,0.00013972,2]
[356087508,1741891857169,-500.0,0.00013972,2]
[356087509,1741891857178,-500.0,0.00013972,2]
[356087510,1741891857187,-1271.22,0.00013972,2]
[356087511,1741891857196,-500.0,0.00013972,2]
[356087512,1741891857206,-926.44,0.00013972,2]
[356087513,1741891857217,-500.0,0.00013972,2]
[356087514,1741891857226,-500.0,0.00013972,2]
[356087515,1741891857235,-500.0,0.00013972,2]
[356087516,1741891857245,-507.9821468,0.00013972,2]
[356087517,1741891857255,-1452.28,0.00013972,2]
[356087518,1741891857264,-500.0,0.00013972,2]
[356087519,1741891857273,-539.6339826,0.00013972,2]
[356087520,1741891857282,-1840.6,0.00013972,2]
[356087521,1741891857291,-500.0,0.00013972,2]
[356087522,1741891857301,-500.0,0.00013972,2]
[356087523,1741891857311,-527.7,0.00013972,2]
[356087524,1741891857321,-505.96819225,0.00013972,2]
[356087525,1741891857330,-1226.44,0.00013972,2]
[356087526,1741891857339,-2435.29,0.00013972,2]
[356087527,1741891857349,-500.0,0.00013972,2]
[356087528,1741891857359,-509.16658003,0.00013972,2]
[356087529,1741891857368,-723.0,0.00013973,2]
[356087530,1741891857379,-500.0,0.00013973,2]
[356087531,1741891857388,-719.52358209,0.00013974,2]
[356087532,1741891857398,-500.0,0.00013989,2]
[356087533,1741891857407,-199.0,0.0001399,14]
[356087534,1741891857416,-1000.0,0.00014,14]
[356087535,1741891857426,-1300.0,0.00014,3]
[356087536,1741891857436,-1081.58,0.00014,2]
[356087537,1741891857445,-725.62826371,0.00014,2]
[356087538,1741891857455,-867454.96374705,0.00014,2]
[356087539,1741891860336,-399.0,0.00012929,2]
[356087540,1741891860347,-151.0,0.00013562,2]
[356087541,1741891860357,-151.0,0.00013562,2]
[356087542,1741891860367,-1500.351099,0.00013562,2]
[356087543,1741891860379,-1500.351099,0.00013562,2]
[356087544,1741891860389,-1500.351099,0.00013562,2]
[356087545,1741891860398,-1500.351099,0.00013562,2]
[356087546,1741891860408,-151.0,0.00013598,2]
[356087547,1741891860418,-1500.351099,0.00013598,2]
[356087548,1741891860427,-1500.351099,0.00013598,2]
[356087549,1741891860438,-151.0,0.00013599,2]
[356087550,1741891860447,-151.0,0.00013599,2]
[356087551,1741891860457,-151.0,0.00013599,2]
[356087552,1741891860467,-151.0,0.00013599,2]
[356087553,1741891860478,-151.0,0.00013599,2]
[356087554,1741891860491,-266.411133,0.00013599,2]
[356087555,1741891860500,-1500.351099,0.00013599,2]
[356087556,1741891860510,-1500.351099,0.00013599,2]
[356087557,1741891860970,-1500.351099,0.00013599,2]
[356087558,1741891860992,-1500.351099,0.00013599,2]
[356087559,1741891861008,-1500.351099,0.00013599,2]
[356087560,1741891861019,-1500.351099,0.00013599,2]
[356087561,1741891861028,-1500.351099,0.00013599,2]
[356087562,1741891861037,-1500.351099,0.00013599,2]
[356087563,1741891861047,-1500.351099,0.00013599,2]
[356087564,1741891861056,-1500.351099,0.00013599,2]
[356087565,1741891861066,-1500.351099,0.00013599,2]
[356087566,1741891861075,-1500.351099,0.00013599,2]
[356087567,1741891861085,-1500.351099,0.00013599,2]
[356087568,1741891861094,-1500.351097,0.00013599,2]
[356087569,1741891861104,-507.72433386,0.00013698,2]
[356087570,1741891861114,-510.36908537,0.00013698,2]
[356087571,1741891861123,-500.0,0.00013698,2]
[356087572,1741891861134,-500.0,0.00013698,2]
[356087573,1741891861143,-500.0,0.00013698,2]
[356087574,1741891861153,-504.49483199,0.00013698,2]
[356087575,1741891861162,-354.54275732,0.00013698,2]
[356087576,1741891861172,-500.0,0.00013698,2]
[356087577,1741891861182,-500.0,0.00013698,2]
[356087578,1741891861192,-500.0,0.00013698,2]
[356087579,1741891861201,-500.0,0.00013698,2]
[356087580,1741891861211,-500.0,0.00013698,2]
[356087581,1741891861220,-500.0,0.00013699,2]
[356087582,1741891861229,-500.0,0.00013699,2]
[356087583,1741891861239,-500.0,0.00013699,2]
[356087584,1741891861248,-500.0,0.00013699,2]
[356087585,1741891861258,-154.64006434,0.00013699,2]
[356087586,1741891861267,-500.0,0.00013699,2]
[356087587,1741891861276,-500.0,0.00013699,2]
[356087588,1741891861286,-500.0,0.00013699,2]
[356087589,1741891861295,-500.0,0.00013699,2]
[356087590,1741891861305,-412.95324481,0.00013699,2]
[356087591,1741891861316,-500.0,0.00013699,2]
[356087592,1741891861326,-256.19455584,0.00013699,2]
[356087604,1741893031779,-500.0,0.00013028,2]
[356087605,1741893031790,-187.13834497,0.00013028,2]
[356087606,1741893031801,-115.81555259,0.00013028,2]
[356087607,1741893031811,-1914.0,0.00013029,2]
[356087608,1741893031821,-540.0,0.00013029,2]
[356087609,1741893031831,-339.081,0.00013029,2]
[356087610,1741893031841,-3000.0,0.00013499,2]
[356087611,1741893031850,-2205.7946422,0.00013499,2]
[356087612,1741893031860,-241.99634962,0.00013499,2]
[356087613,1741893031869,-20646.83086129,0.00013562,2]
[356087614,1741893031880,-500.0,0.00013598,2]
[356087615,1741893031891,-500.0,0.00013598,2]
[356087616,1741893031901,-187.07795834,0.00013598,2]
[356087617,1741893031911,-500.0,0.00013598,2]
[356087618,1741893031921,-516.23277773,0.00013598,2]
[356087619,1741893031930,-114135.4686845,0.00013599,2]
[356087620,1741893031940,-487.788922,0.00013599,2]
[356087622,1741893031950,-300.0,0.000136,4]
[356087624,1741893031962,-500.0,0.00013673,2]
[356087626,1741893031971,-500.0,0.00013673,2]
[356087628,1741893031981,-500.0,0.00013673,2]
[356087630,1741893031990,-515.97186591,0.00013673,2]
[356087632,1741893031999,-591.20069898,0.00013673,2]
[356087634,1741893032009,-500.0,0.00013673,2]
[356087636,1741893032019,-500.0,0.00013673,2]
[356087638,1741893032029,-500.0,0.00013673,2]
[356087640,1741893032039,-500.0,0.00013673,2]
[356087642,1741893032048,-500.0,0.00013673,2]
[356087644,1741893032058,-596.70068218,0.00013673,2]
[356087646,1741893032067,-500.0,0.00013673,2]
[356087648,1741893032077,-500.0,0.00013673,2]
[356087650,1741893032087,-500.0,0.00013673,2]
[356087652,1741893032097,-500.0,0.00013673,2]
[356087654,1741893032107,-500.0,0.00013673,2]
[356087655,1741893032116,-500.36605072,0.00013673,2]
[356087656,1741893032126,-500.0,0.00013673,2]
[356087657,1741893032136,-500.0,0.00013673,2]
[356087658,1741893032145,-474.1167137,0.00013673,2]
[356087659,1741893032155,-500.0,0.00013673,2]
[356087660,1741893032165,-500.0,0.00013673,2]
[356087661,1741893032175,-500.0,0.00013673,2]
[356087662,1741893032185,-500.0,0.00013673,2]
[356087663,1741893032195,-500.0,0.00013673,2]
[356087664,1741893032205,-386.44890722,0.00013673,2]
[356087665,1741893032214,-500.0,0.00013673,2]
[356087666,1741893032224,-500.0,0.00013673,2]
[356087667,1741893032234,-500.0,0.00013673,2]
[356087668,1741893032243,-480.13701578,0.00013673,2]
[356087669,1741893032253,-150.241841,0.00013673,2]
[356087670,1741893032262,-500.0,0.00013673,2]
[356087671,1741893032272,-500.0,0.00013673,2]
[356087672,1741893032281,-500.0,0.00013673,2]
[356087673,1741893032291,-500.0,0.00013673,2]
[356087674,1741893032300,-500.0,0.00013673,2]
[356087675,1741893032310,-500.0,0.00013673,2]
[356087676,1741893032319,-500.0,0.00013673,2]
[356087677,1741893032329,-500.0,0.00013673,2]
[356087678,1741893032339,-500.0,0.00013673,2]
[356087679,1741893032348,-500.0,0.00013673,2]
[356087680,1741893032358,-500.0,0.00013673,2]
[356087681,1741893032368,-500.0,0.00013673,2]
[356087682,1741893032377,-500.0,0.00013673,2]
[356087683,1741893032387,-500.0,0.00013673,2]
[356087684,1741893032396,-500.0,0.00013673,2]
[356087685,1741893032406,-500.0,0.00013673,2]
[356087686,1741893032415,-500.0,0.00013673,2]
[356087687,1741893032425,-500.0,0.00013673,2]
[356087688,1741893032434,-500.0,0.00013673,2]
[356087689,1741893032444,-500.0,0.00013673,2]
[356087690,1741893032453,-152.0,0.00013682,2]
[356087691,1741893032463,-1000.0,0.0001369,2]
[356087692,1741893032472,-151.0,0.00013691,2]
[356087693,1741893032481,-477.46,0.00013697,2]
[356087694,1741893032491,-160.0,0.00013697,2]
[356087695,1741893032500,-500.0,0.00013698,2]
[356087696,1741893032510,-520.17792177,0.00013698,2]
[356087697,1741893032519,-500.0,0.00013698,2]
[356087698,1741893032528,-500.0,0.00013698,2]
[356087699,1741893032538,-507.7480241,0.00013698,2]
[356087700,1741893032548,-520.11493396,0.00013698,2]
[356087701,1741893032557,-627.59,0.00013698,2]
[356087702,1741893032567,-500.0,0.00013698,2]
[356087703,1741893032576,-500.0,0.00013698,2]
[356087704,1741893032586,-500.0,0.00013698,2]
[356087705,1741893032595,-500.0,0.00013698,2]
[356087706,1741893032605,-500.0,0.00013698,2]
[356087707,1741893032615,-500.0,0.00013698,2]
[356087708,1741893032625,-500.0,0.00013698,2]
[356087709,1741893032635,-500.0,0.00013698,2]
[356087710,1741893032645,-500.0,0.00013698,2]
[356087711,1741893032656,-500.0,0.00013698,2]
[356087712,1741893032665,-500.0,0.00013698,2]
[356087713,1741893032675,-500.0,0.00013698,2]
[356087714,1741893032684,-505.9050948,0.00013698,2]
[356087715,1741893032695,-500.0,0.00013698,2]
[356087716,1741893032705,-500.0,0.00013698,2]
[356087717,1741893032714,-500.0,0.00013698,2]
[356087718,1741893032724,-500.0,0.00013698,2]
[356087719,1741893032734,-500.0,0.00013698,2]
[356087720,1741893032962,-509.09362513,0.00013698,2]
[356087721,1741893032972,-500.0,0.00013698,2]
[356087722,1741893032982,-500.0,0.00013698,2]
[356087723,1741893032991,-500.0,0.00013698,2]
[356087724,1741893033000,-500.0,0.00013698,2]
[356087725,1741893033010,-531.85443734,0.00013698,2]
[356087726,1741893033019,-500.0,0.00013698,2]
[356087727,1741893033029,-500.0,0.00013698,2]
[356087728,1741893033040,-500.0,0.00013698,2]
[356087729,1741893033049,-500.0,0.00013698,2]
[356087730,1741893033059,-1209.71,0.00013698,2]
[356087731,1741893033068,-500.0,0.00013698,2]
[356087732,1741893033078,-500.0,0.00013698,2]
[356087733,1741893033087,-500.0,0.00013698,2]
[356087734,1741893033097,-500.0,0.00013698,2]
[356087735,1741893033106,-500.0,0.00013698,2]
[356087736,1741893033116,-500.0,0.00013698,2]
[356087737,1741893033126,-500.0,0.00013698,2]
[356087738,1741893033136,-500.0,0.00013698,2]
[356087739,1741893033146,-643.81019881,0.00013698,2]
[356087740,1741893033155,-500.0,0.00013698,2]
[356087741,1741893033165,-500.0,0.00013698,2]
[356087742,1741893033175,-500.0,0.00013698,2]
[356087743,1741893033185,-517.15225913,0.00013698,2]
[356087744,1741893033196,-500.0,0.00013698,2]
[356087745,1741893033205,-500.0,0.00013698,2]
[356087746,1741893033216,-505.49288884,0.00013698,2]
[356087747,1741893033226,-500.0,0.00013698,2]
[356087748,1741893033235,-509.89957413,0.00013698,2]
[356087749,1741893033245,-500.0,0.00013698,2]
[356087750,1741893033255,-500.0,0.00013698,2]
[356087751,1741893033265,-500.0,0.00013698,2]
[356087752,1741893033275,-496.26622044,0.00013698,2]
[356087753,1741893033285,-500.0,0.00013698,2]
[356087754,1741893033295,-627.2947193,0.00013698,2]
[356087755,1741893033304,-500.0,0.00013698,2]
[356087756,1741893033314,-500.0,0.00013698,2]
[356087757,1741893033323,-500.0,0.00013698,2]
[356087758,1741893033333,-500.0,0.00013698,2]
[356087759,1741893033343,-591.24,0.00013698,2]
[356087760,1741893033352,-500.0,0.00013698,2]
[356087761,1741893033362,-500.0,0.00013698,2]
[356087762,1741893033371,-610.64,0.00013698,2]
[356087763,1741893033381,-796.43,0.00013698,2]
[356087764,1741893033391,-500.0,0.00013698,2]
[356087765,1741893033401,-505.98107617,0.00013698,2]
[356087766,1741893033410,-500.0,0.00013698,2]
[356087767,1741893033420,-500.0,0.00013698,2]
[356087768,1741893033430,-500.0,0.00013698,2]
[356087769,1741893033440,-500.0,0.00013698,2]
[356087770,1741893033451,-500.0,0.00013698,2]
[356087771,1741893033461,-531.72,0.00013698,2]
[356087772,1741893033471,-500.0,0.00013698,2]
[356087773,1741893033481,-500.0,0.00013698,2]
[356087774,1741893033491,-500.0,0.00013698,2]
[356087775,1741893033500,-500.0,0.00013698,2]
[356087776,1741893033510,-500.0,0.00013698,2]
[356087777,1741893033519,-523.40841102,0.00013698,2]
[356087778,1741893033529,-378.03428269,0.00013698,2]
[356087779,1741893033539,-500.0,0.00013698,2]
[356087780,1741893033549,-500.0,0.00013698,2]
[356087781,1741893033558,-500.0,0.00013698,2]
[356087782,1741893033568,-500.0,0.00013698,2]
[356087783,1741893033578,-500.0,0.00013698,2]
[356087784,1741893033588,-500.0,0.00013698,2]
[356087785,1741893033597,-500.0,0.00013698,2]
[356087786,1741893033607,-500.0,0.00013698,2]
[356087787,1741893033617,-500.0,0.00013698,2]
[356087788,1741893033627,-500.0,0.00013698,2]
[356087789,1741893033637,-500.0,0.00013698,2]
[356087790,1741893033647,-500.0,0.00013698,2]
[356087791,1741893033657,-500.0,0.00013698,2]
[356087792,1741893033668,-500.0,0.00013698,2]
[356087793,1741893033678,-500.0,0.00013698,2]
[356087794,1741893033688,-500.0,0.00013698,2]
[356087795,1741893033699,-500.0,0.00013698,2]
[356087796,1741893033709,-500.0,0.00013698,2]
[356087797,1741893033719,-541.93,0.00013698,2]
[356087798,1741893033729,-524.45831164,0.00013698,2]
[356087799,1741893033739,-500.0,0.00013698,2]
[356087800,1741893033749,-543.8,0.00013698,2]
[356087801,1741893033760,-500.0,0.00013698,2]
[356087802,1741893033770,-500.0,0.00013698,2]
[356087803,1741893033780,-500.0,0.00013698,2]
[356087804,1741893033790,-621.7102527,0.00013698,2]
[356087805,1741893033799,-500.0,0.00013698,2]
[356087806,1741893033809,-500.0,0.00013698,2]
[356087807,1741893033819,-500.0,0.00013698,2]
[356087808,1741893033829,-500.0,0.00013698,2]
[356087809,1741893033839,-500.0,0.00013698,2]
[356087810,1741893033849,-500.0,0.00013698,2]
[356087811,1741893033859,-500.0,0.00013698,2]
[356087812,1741893033869,-500.0,0.00013698,2]
[356087813,1741893033881,-500.0,0.00013698,2]
[356087814,1741893033892,-506.75884494,0.00013698,2]
[356087815,1741893033902,-500.0,0.00013698,2]
[356087816,1741893033911,-511.96507088,0.00013698,2]
[356087817,1741893033921,-613.72696604,0.00013698,2]
[356087818,1741893033931,-500.0,0.00013698,2]
[356087819,1741893033940,-512.56292165,0.00013698,2]
[356087820,1741893033950,-500.0,0.00013698,2]
[356087821,1741893033961,-503.86709163,0.00013698,2]
[356087822,1741893033971,-500.0,0.00013698,2]
[356087823,1741893033980,-500.0,0.00013698,2]
[356087824,1741893033990,-500.0,0.00013698,2]
[356087825,1741893033999,-500.0,0.00013698,2]
[356087826,1741893034009,-500.0,0.00013698,2]
[356087827,1741893034018,-500.0,0.00013698,2]
[356087828,1741893034028,-500.0,0.00013698,2]
[356087829,1741893034038,-1926.69,0.00013698,2]
[356087830,1741893034048,-500.0,0.00013698,2]
[356087831,1741893034058,-500.0,0.00013698,2]
[356087832,1741893034067,-500.0,0.00013698,2]
[356087833,1741893034077,-500.0,0.00013698,2]
[356087834,1741893034087,-500.0,0.00013698,2]
[356087835,1741893034096,-500.0,0.00013698,2]
[356087836,1741893034105,-515.9236474,0.00013698,2]
[356087837,1741893034115,-500.0,0.00013698,2]
[356087838,1741893034125,-500.0,0.00013698,2]
[356087839,1741893034135,-500.0,0.00013698,2]
[356087840,1741893034145,-1100.15,0.00013698,2]
[356087841,1741893034155,-500.0,0.00013698,2]
[356087842,1741893034164,-511.99192018,0.00013698,2]
[356087843,1741893034173,-500.0,0.00013698,2]
[356087844,1741893034183,-500.0,0.00013698,2]
[356087845,1741893034193,-500.0,0.00013698,2]
[356087846,1741893034202,-500.0,0.00013698,2]
[356087847,1741893034212,-500.0,0.00013698,2]
[356087848,1741893034221,-500.0,0.00013698,2]
[356087849,1741893034230,-500.0,0.00013698,2]
[356087850,1741893034239,-500.0,0.00013698,2]
[356087851,1741893034250,-500.0,0.00013698,2]
[356087852,1741893034260,-500.0,0.00013698,2]
[356087853,1741893034269,-542.97971457,0.00013698,2]
[356087854,1741893034279,-500.0,0.00013698,2]
[356087855,1741893034288,-500.0,0.00013698,2]
[356087856,1741893034297,-480.91535323,0.00013698,2]
[356087857,1741893034307,-1835.35,0.00013698,2]
[356087858,1741893034316,-1455.62,0.00013698,2]
[356087859,1741893034326,-500.0,0.00013698,2]
[356087860,1741893034335,-500.0,0.00013698,2]
[356087861,1741893034345,-500.0,0.00013698,2]
[356087862,1741893034354,-500.0,0.00013698,2]
[356087863,1741893034363,-500.0,0.00013698,2]
[356087864,1741893034373,-500.0,0.00013698,2]
[356087865,1741893034382,-635.33,0.00013698,2]
[356087866,1741893034391,-500.0,0.00013698,2]
[356087867,1741893034400,-500.0,0.00013698,2]
[356087868,1741893034410,-2160.42,0.00013698,2]
[356087869,1741893034419,-500.0,0.00013698,2]
[356087870,1741893034428,-500.0,0.00013698,2]
[356087871,1741893034438,-507.93030697,0.00013698,2]
[356087872,1741893034447,-500.0,0.00013698,2]
[356087873,1741893034457,-500.0,0.00013698,2]
[356087874,1741893034466,-500.0,0.00013698,2]
[356087875,1741893034475,-500.0,0.00013698,2]
[356087876,1741893034485,-500.0,0.00013698,2]
[356087877,1741893034494,-500.0,0.00013698,2]
[356087878,1741893034504,-500.0,0.00013698,2]
[356087879,1741893034513,-2203.41,0.00013698,2]
[356087880,1741893034522,-500.0,0.00013698,2]
[356087881,1741893034531,-500.0,0.00013698,2]
[356087882,1741893034541,-500.0,0.00013698,2]
[356087883,1741893034550,-636.13799834,0.00013698,2]
[356087884,1741893034560,-544.13579293,0.00013698,2]
[356087885,1741893034570,-1232.82,0.00013698,2]
[356087886,1741893034579,-500.0,0.00013698,2]
[356087887,1741893034589,-500.0,0.00013698,2]
[356087888,1741893034598,-500.0,0.00013698,2]
[356087889,1741893034608,-500.0,0.00013698,2]
[356087890,1741893034617,-500.0,0.00013698,2]
[356087891,1741893034628,-500.0,0.00013698,2]
[356087892,1741893034637,-500.0,0.00013698,2]
[356087893,1741893034647,-500.0,0.00013698,2]
[356087894,1741893034656,-539.79,0.00013698,2]
[356087895,1741893034665,-500.0,0.00013698,2]
[356087896,1741893034675,-500.0,0.00013698,2]
[356087897,1741893034684,-570.2,0.00013698,2]
[356087898,1741893034693,-500.0,0.00013698,2]
[356087899,1741893034703,-500.0,0.00013698,2]
[356087900,1741893034712,-500.0,0.00013698,2]
[356087901,1741893034722,-500.0,0.00013698,2]
[356087902,1741893034731,-501.80194572,0.00013698,2]
[356087903,1741893034741,-500.0,0.00013698,2]
[356087904,1741893034750,-500.0,0.00013698,2]
[356087905,1741893034760,-500.0,0.00013698,2]
[356087906,1741893034769,-500.0,0.00013698,2]
[356087907,1741893034779,-500.0,0.00013698,2]
[356087908,1741893034788,-500.0,0.00013698,2]
[356087909,1741893034797,-500.0,0.00013698,2]
[356087910,1741893034806,-500.0,0.00013698,2]
[356087911,1741893034816,-500.0,0.00013698,2]
[356087912,1741893034825,-500.0,0.00013698,2]
[356087913,1741893034834,-500.0,0.00013698,2]
[356087914,1741893034843,-500.0,0.00013698,2]
[356087915,1741893034853,-500.0,0.00013698,2]
[356087916,1741893034862,-500.0,0.00013698,2]
[356087917,1741893034872,-500.0,0.00013698,2]
[356087918,1741893034883,-500.0,0.00013698,2]
[356087919,1741893034894,-500.0,0.00013698,2]
[356087920,1741893034904,-500.0,0.00013698,2]
[356087921,1741893034913,-500.0,0.00013698,2]
[356087922,1741893034925,-500.0,0.00013698,2]
[356087923,1741893034934,-500.0,0.00013698,2]
[356087924,1741893034944,-500.0,0.00013698,2]
[356087925,1741893034954,-500.0,0.00013698,2]
[356087926,1741893034964,-500.0,0.00013698,2]
[356087927,1741893034973,-1121.33,0.00013698,2]
[356087928,1741893034983,-1044.85,0.00013698,2]
[356087929,1741893034992,-500.0,0.00013698,2]
[356087930,1741893035001,-500.0,0.00013698,2]
[356087931,1741893035011,-538.54200938,0.00013698,2]
[356087932,1741893035020,-4528.06,0.00013698,2]
[356087933,1741893035029,-500.0,0.00013698,2]
[356087934,1741893035038,-500.0,0.00013698,2]
[356087935,1741893035047,-500.0,0.00013698,2]
[356087936,1741893035057,-500.0,0.00013698,2]
[356087937,1741893035066,-500.0,0.00013698,2]
[356087938,1741893035075,-500.0,0.00013698,2]
[356087939,1741893035085,-500.0,0.00013698,2]
[356087940,1741893035094,-500.0,0.00013698,2]
[356087941,1741893035103,-2051.07,0.00013698,2]
[356087942,1741893035113,-500.0,0.00013698,2]
[356087943,1741893035123,-404.54825653,0.00013698,2]
[356087944,1741893035132,-500.0,0.00013698,2]
[356087945,1741893035142,-500.0,0.00013698,2]
[356087946,1741893035151,-500.0,0.00013698,2]
[356087947,1741893035160,-500.0,0.00013698,2]
[356087948,1741893035169,-1081.09,0.00013698,2]
[356087949,1741893035178,-500.0,0.00013698,2]
[356087950,1741893035187,-500.0,0.00013698,2]
[356087951,1741893035197,-500.0,0.00013698,2]
[356087952,1741893035207,-500.0,0.00013698,2]
[356087953,1741893035215,-500.0,0.00013698,2]
[356087954,1741893035225,-500.0,0.00013698,2]
[356087955,1741893035234,-500.0,0.00013698,2]
[356087956,1741893035243,-500.0,0.00013698,2]
[356087957,1741893035252,-500.0,0.00013698,2]
[356087958,1741893035262,-500.0,0.00013698,2]
[356087959,1741893035271,-500.0,0.00013698,2]
[356087960,1741893035280,-500.0,0.00013698,2]
[356087961,1741893035290,-500.0,0.00013698,2]
[356087962,1741893035299,-500.0,0.00013698,2]
[356087963,1741893035308,-500.0,0.00013698,2]
[356087964,1741893035318,-500.0,0.00013698,2]
[356087965,1741893035327,-500.0,0.00013698,2]
[356087966,1741893035336,-500.0,0.00013698,2]
[356087967,1741893035346,-500.0,0.00013698,2]
[356087968,1741893035355,-500.0,0.00013698,2]
[356087969,1741893035364,-500.0,0.00013698,2]
[356087970,1741893035374,-500.0,0.00013698,2]
[356087971,1741893035383,-500.0,0.00013698,2]
[356087972,1741893035392,-500.0,0.00013698,2]
[356087973,1741893035401,-500.0,0.00013698,2]
[356087974,1741893035411,-500.0,0.00013698,2]
[356087975,1741893035420,-500.0,0.00013698,2]
[356087976,1741893035430,-500.0,0.00013698,2]
[356087977,1741893035439,-500.0,0.00013698,2]
[356087978,1741893035449,-500.0,0.00013698,2]
[356087979,1741893035458,-500.0,0.00013698,2]
[356087980,1741893035468,-500.0,0.00013698,2]
[356087981,1741893035477,-500.0,0.00013698,2]
[356087982,1741893035487,-500.0,0.00013698,2]
[356087983,1741893035496,-500.0,0.00013698,2]
[356087984,1741893035506,-500.0,0.00013698,2]
[356087985,1741893035515,-500.0,0.00013698,2]
[356087986,1741893035524,-500.0,0.00013698,2]
[356087987,1741893035533,-500.0,0.00013698,2]
[356087988,1741893035543,-500.0,0.00013698,2]
[356087989,1741893035553,-500.0,0.00013698,2]
[356087990,1741893035563,-500.0,0.00013698,2]
[356087991,1741893035572,-500.0,0.00013698,2]
[356087992,1741893035581,-500.0,0.00013698,2]
[356087993,1741893035591,-500.0,0.00013698,2]
[356087994,1741893035600,-500.0,0.00013698,2]
[356087995,1741893035611,-500.0,0.00013698,2]
[356087996,1741893035621,-500.0,0.00013698,2]
[356087997,1741893035630,-500.0,0.00013698,2]
[356087998,1741893035639,-1105.56,0.00013698,2]
[356087999,1741893035649,-500.0,0.00013698,2]
[356088000,1741893035658,-500.0,0.00013698,2]
[356088001,1741893035667,-500.0,0.00013698,2]
[356088002,1741893035677,-500.0,0.00013698,2]
[356088003,1741893035686,-657.65,0.00013698,2]
[356088004,1741893035696,-500.0,0.00013698,2]
[356088005,1741893035705,-406.68411384,0.00013698,2]
[356088006,1741893035714,-345.72119183,0.00013698,2]
[356088007,1741893035723,-500.0,0.00013698,2]
[356088008,1741893035732,-500.0,0.00013698,2]